bitfinex/quotes_BTCUSD_20250904
["timestamp","ask_amount","ask_price","bid_price","bid_amount"]
[1756956470257,2.16641788,111750.0,111740.0,1e-08]
[1756956470702,2.01277788,111750.0,111740.0,1e-08]
[1756956470910,1.12632283,111750.0,111740.0,1e-08]
[1756956471154,2.16641788,111750.0,111740.0,1e-08]
[1756956471771,2.16641788,111750.0,111690.0,1e-08]
[1756956471772,2.59924112,111700.0,111690.0,1e-08]
[1756956471973,0.51906706,111690.0,111680.0,0.0004]
[1756956472180,0.74829212,111690.0,111680.0,0.0004]
[1756956472391,1.43606654,111690.0,111680.0,0.00087055]
[1756956472732,1.78276489,111690.0,111680.0,0.00087055]
[1756956472939,1.89874741,111690.0,111680.0,0.00087055]
[1756956473128,1.90173741,111690.0,111680.0,0.00087055]
[1756956473362,1.91075431,111690.0,111680.0,0.00087055]
[1756956473577,1.91475431,111690.0,111680.0,0.00087055]
[1756956474681,1.91875431,111690.0,111680.0,0.00187055]
[1756956474886,1.91576431,111690.0,111680.0,0.00187055]
[1756956475299,1.91875431,111690.0,111680.0,0.00187055]
[1756956475639,1.80105539,111690.0,111680.0,0.00187055]
[1756956475840,1.95833539,111690.0,111680.0,0.00187055]
[1756956476547,1.95829539,111690.0,111680.0,0.00187055]
[1756956477346,1.80105539,111690.0,111680.0,0.00187055]
[1756956477546,1.42993143,111690.0,111680.0,0.00703055]
[1756956480273,1.43209143,111690.0,111680.0,0.00703055]
[1756956481016,1.43193143,111690.0,111680.0,0.00703055]
[1756956481216,1.31080943,111690.0,111680.0,0.00703055]
[1756956481390,1.46788943,111690.0,111680.0,0.00386055]
[1756956481631,1.43201143,111690.0,111680.0,0.00386055]
[1756956481840,1.45992861,111690.0,111680.0,0.00386055]
[1756956482263,1.5548346,111690.0,111680.0,0.00187055]
[1756956482470,2.04473168,111690.0,111680.0,0.00187055]
[1756956484153,2.09473167,111690.0,111680.0,0.00187055]
[1756956485401,2.10374167,111690.0,111680.0,0.00187055]
[1756956487140,2.09541167,111690.0,111680.0,0.00187055]
[1756956488098,2.04541168,111690.0,111680.0,0.00187055]
[1756956489340,1.54095333,111690.0,111680.0,0.00187055]
[1756956489507,1.67016467,111690.0,111680.0,0.00187055]
[1756956490686,2.01687667,111690.0,111680.0,0.00187055]
[1756956490892,2.04530533,111690.0,111680.0,0.00187055]
[1756956491102,0.17909913,111670.0,111660.0,1e-08]
[1756956491434,0.56911516,111660.0,111650.0,0.0004]
[1756956491690,2.91164069,111660.0,111650.0,0.00048408]
[1756956493122,0.67369059,111660.0,111650.0,0.00048408]
[1756956493333,1.96805252,111660.0,111650.0,0.00048408]
[1756956493537,1.81303995,111660.0,111650.0,0.00048408]
[1756956493740,1.90495594,111660.0,111650.0,0.00048408]
[1756956493948,1.91327623,111660.0,111650.0,0.00048408]
[1756956494159,1.95400478,111660.0,111650.0,0.00048408]
[1756956494571,1.95500478,111660.0,111650.0,0.00248408]
[1756956496676,1.75551623,111660.0,111650.0,0.00248408]
[1756956496887,1.91403623,111660.0,111650.0,0.00248408]
[1756956498095,1.91403623,111660.0,111650.0,0.0018563]
[1756956499308,1.95521669,111660.0,111650.0,0.0018563]
[1756956499520,1.97439749,111660.0,111650.0,0.0018563]
[1756956503480,1.07013315,111660.0,111650.0,0.0018563]
[1756956503730,1.97439749,111660.0,111650.0,0.0018563]
[1756956509796,1.97439749,111660.0,111640.0,0.0004]
[1756956509998,1.72770703,111650.0,111640.0,0.00054111]
[1756956510240,1.86999184,111650.0,111640.0,0.00054111]
[1756956510449,1.87202184,111650.0,111640.0,0.00054111]
[1756956510667,1.87517184,111650.0,111640.0,0.00054111]
[1756956510865,1.92517183,111650.0,111640.0,0.00154111]
[1756956511022,1.87517184,111650.0,111640.0,0.00154111]
[1756956511231,1.92517183,111650.0,111640.0,0.00154111]
[1756956511456,1.92619002,111650.0,111640.0,0.00354111]
[1756956511694,1.92719002,111650.0,111640.0,0.00554111]
[1756956511898,1.94812884,111650.0,111640.0,1e-08]
[1756956512091,1.79028884,111650.0,111640.0,1e-08]
[1756956512255,1.94844884,111650.0,111640.0,1e-08]
[1756956513875,1.79028884,111650.0,111640.0,1e-08]
[1756956514102,1.94844884,111650.0,111640.0,1e-08]
[1756956515285,1.95204018,111650.0,111640.0,1e-08]
[1756956515563,1.97404442,111650.0,111640.0,1e-08]
[1756956518263,1.99793722,111650.0,111640.0,1e-08]
[1756956519115,2.04793722,111650.0,111640.0,1e-08]
[1756956520287,2.07979429,111650.0,111640.0,1e-08]
[1756956523049,0.5191633,111630.0,111620.0,0.00345]
[1756956523260,0.5191633,111630.0,111620.0,0.00349705]
[1756956523261,1.40885922,111630.0,111620.0,0.00349705]
[1756956523482,1.24405285,111630.0,111620.0,0.00550705]
[1756956523641,1.40888835,111630.0,111620.0,0.00550705]
[1756956524075,1.41824892,111630.0,111620.0,0.00550705]
[1756956524296,1.46000766,111630.0,111620.0,0.00550705]
[1756956524825,1.30144766,111630.0,111620.0,0.00550705]
[1756956525031,1.45996766,111630.0,111620.0,0.00550705]
[1756956525243,1.30144766,111630.0,111620.0,0.00550705]
[1756956525654,1.46008766,111630.0,111620.0,0.00550705]
[1756956526057,1.46108766,111630.0,111620.0,0.00550705]
[1756956526268,1.46104766,111630.0,111620.0,0.00550705]
[1756956530289,1.45477216,111630.0,111620.0,0.00550705]
[1756956530504,1.45473216,111630.0,111620.0,0.00550705]
[1756956530843,1.45473216,111630.0,111620.0,0.00044705]
[1756956530844,1.48842082,111630.0,111620.0,0.00044705]
[1756956531045,1.49469682,111630.0,111620.0,0.00044705]
[1756956531300,1.48842082,111630.0,111620.0,0.00044705]
[1756956531472,1.49469655,111630.0,111620.0,0.00044705]
[1756956532103,1.51397561,111630.0,111620.0,0.00044705]
[1756956532347,1.49469655,111630.0,111620.0,0.00044705]
[1756956533133,1.51397522,111630.0,111620.0,0.00044705]
[1756956533488,0.64467365,111620.0,111610.0,0.0004]
[1756956533703,0.64467365,111620.0,111610.0,0.00044705]
[1756956533704,1.93864978,111620.0,111610.0,0.00044705]
[1756956533875,1.95754294,111620.0,111610.0,0.00044705]
[1756956534117,1.97260187,111620.0,111610.0,0.00044705]
[1756956534302,1.04633329,111620.0,111610.0,0.00044705]
[1756956534555,1.81428187,111620.0,111610.0,0.00044705]
[1756956534910,1.04841329,111620.0,111610.0,0.00044705]
[1756956535112,1.26021561,111620.0,111610.0,0.00549705]
[1756956535325,1.31833297,111620.0,111610.0,0.00549705]
[1756956535765,1.14065313,111620.0,111610.0,0.00549705]
[1756956535996,1.34909312,111620.0,111610.0,0.00549705]
[1756956536133,1.19281312,111620.0,111610.0,0.00549705]
[1756956536334,1.23256912,111620.0,111610.0,0.00549705]
[1756956536651,1.39216912,111620.0,111610.0,0.00549705]
[1756956537070,0.92903483,111620.0,111610.0,0.00549705]
[1756956537426,1.36370046,111620.0,111610.0,0.00549705]
[1756956538470,1.35742473,111620.0,111610.0,0.00549705]
[1756956538893,0.89429044,111620.0,111610.0,0.00549705]
[1756956539083,1.35742473,111620.0,111610.0,0.00549705]
[1756956539498,1.40742472,111620.0,111610.0,0.00549705]
[1756956539699,1.43585338,111620.0,111610.0,0.00549705]
[1756956540069,1.38585339,111620.0,111610.0,0.00549705]
[1756956540814,1.43633338,111620.0,111610.0,0.00549705]
[1756956541439,1.43849338,111620.0,111610.0,0.00549705]
[1756956541856,1.43849338,111620.0,111610.0,0.00245705]
[1756956542037,1.90472767,111620.0,111610.0,0.00044705]
[1756956542298,1.91099668,111620.0,111610.0,0.00044705]
[1756956543862,1.9319355,111620.0,111600.0,0.0004]
[1756956544065,1.86971039,111610.0,111600.0,1e-08]
[1756956544323,1.99402025,111610.0,111600.0,1e-08]
[1756956544462,2.01902284,111610.0,111600.0,1e-08]
[1756956544809,2.02212284,111610.0,111600.0,1e-08]
[1756956546079,0.56921146,111600.0,111590.0,1e-08]
[1756956546302,1.92151283,111600.0,111590.0,8.437e-05]
[1756956546512,2.06635141,111600.0,111590.0,8.437e-05]
[1756956546707,2.06994467,111600.0,111590.0,8.437e-05]
[1756956547944,2.07194467,111600.0,111590.0,8.437e-05]
[1756956548344,2.07294467,111600.0,111590.0,8.437e-05]
[1756956548773,0.5901824,111580.0,111570.0,1e-08]
[1756956548987,1.908592,111580.0,111570.0,0.00047065]
[1756956549189,1.913762,111580.0,111570.0,0.00047065]
[1756956549421,1.97651501,111580.0,111570.0,0.00047065]
[1756956549949,1.97851501,111580.0,111570.0,0.00047065]
[1756956550597,1.97651501,111580.0,111570.0,0.00047065]
[1756956550800,0.54019847,111570.0,111560.0,0.0004]
[1756956550975,1.98225451,111570.0,111560.0,0.0004]
[1756956551181,1.98225451,111570.0,111560.0,0.00237]
[1756956551182,1.80487569,111570.0,111560.0,0.00237]
[1756956551386,1.96115569,111570.0,111560.0,0.0054]
[1756956551636,1.9111557,111570.0,111560.0,0.0054]
[1756956552371,1.9112757,111570.0,111560.0,0.0054]
[1756956552611,1.9132757,111570.0,111560.0,0.0054]
[1756956552819,1.9142757,111570.0,111560.0,0.0054]
[1756956553496,1.9163157,111570.0,111560.0,0.00237]
[1756956553947,1.9163157,111570.0,111560.0,0.0054]
[1756956554410,1.92188405,111570.0,111560.0,0.0054]
[1756956555505,1.92188405,111570.0,111560.0,0.0004]
[1756956555753,1.92501405,111570.0,111560.0,0.0004]
[1756956556022,1.99595286,111570.0,111560.0,0.0004]
[1756956557025,2.03538974,111570.0,111560.0,0.0004]
[1756956557441,2.04162977,111570.0,111560.0,0.0004]
[1756956557850,1.57849548,111570.0,111560.0,0.0004]
[1756956558012,2.04162977,111570.0,111560.0,0.0004]
[1756956558212,1.57849548,111570.0,111560.0,0.0004]
[1756956559368,2.04162977,111570.0,111560.0,0.0004]
[1756956561615,1.57536548,111570.0,111560.0,0.0004]
[1756956561815,1.57849548,111570.0,111560.0,0.0004]
[1756956562283,0.02093882,111560.0,111540.0,0.00556835]
[1756956562480,0.02093882,111560.0,111530.0,0.00516286]
[1756956562481,0.51930787,111540.0,111530.0,0.00516286]
[1756956562684,0.61122386,111540.0,111530.0,0.00713286]
[1756956563068,0.77485698,111540.0,111530.0,0.01016286]
[1756956563212,0.34290099,111540.0,111530.0,0.47329715]
[1756956563427,0.18490099,111540.0,111530.0,0.65262109]
[1756956563628,0.52490099,111540.0,111530.0,0.01016286]
[1756956563879,0.52536966,111540.0,111530.0,0.47329715]
[1756956564082,0.52736966,111540.0,111530.0,0.1894868]
[1756956564866,0.52736966,111540.0,111530.0,0.01016286]
[1756956565724,0.52836966,111540.0,111530.0,0.01016286]
[1756956566026,0.52836966,111540.0,111530.0,0.1894868]
[1756956566174,0.34906179,111540.0,111530.0,0.1894868]
[1756956566382,0.34906179,111540.0,111530.0,0.65262109]
[1756956566575,0.34906179,111540.0,111530.0,0.74453708]
[1756956567932,0.52836966,111540.0,111530.0,0.74453708]
[1756956568593,0.34906179,111540.0,111530.0,0.74453708]
[1756956568790,0.52836966,111540.0,111530.0,0.56521314]
[1756956568988,0.52836966,111540.0,111530.0,0.74453708]
[1756956570078,0.52836966,111540.0,111530.0,0.28140279]
[1756956574677,0.34906179,111540.0,111530.0,0.28140279]
[1756956574905,0.34906179,111540.0,111530.0,0.74453708]
[1756956575303,0.34906179,111540.0,111530.0,0.90193708]
[1756956577619,0.34906179,111540.0,111530.0,0.78645434]
[1756956583058,0.34906179,111540.0,111530.0,0.78577434]
[1756956585220,0.34906179,111540.0,111530.0,0.43812279]
[1756956585395,0.34906179,111540.0,111530.0,0.78577434]
[1756956585760,0.34906179,111540.0,111530.0,0.43812279]
[1756956585961,0.34906179,111540.0,111530.0,0.78577434]
[1756956588067,0.34906179,111540.0,111530.0,0.43812279]
[1756956589468,0.34906179,111540.0,111530.0,0.28140279]
[1756956589667,0.34906179,111540.0,111530.0,0.43772279]
[1756956590782,0.69671334,111540.0,111530.0,0.43772279]
[1756956591655,0.34906179,111540.0,111530.0,0.43772279]
[1756956592302,0.69671334,111540.0,111530.0,0.43772279]
[1756956592889,0.69671334,111540.0,111530.0,0.43760279]
[1756956594350,0.34906179,111540.0,111530.0,0.78525434]
[1756956594734,0.34906179,111540.0,111530.0,0.43760279]
[1756956595192,0.34906179,111540.0,111530.0,0.78525434]
[1756956596055,0.00906179,111540.0,111530.0,1.13290589]
[1756956596277,0.00906179,111540.0,111530.0,1.23429939]
[1756956596452,0.00346867,111540.0,111530.0,0.88664784]
[1756956596856,0.00146867,111540.0,111530.0,0.89560286]
[1756956597155,0.00046867,111540.0,111530.0,0.89560286]
[1756956597382,0.00346867,111540.0,111530.0,0.54795131]
[1756956597639,0.00146867,111540.0,111530.0,0.89560286]
[1756956598024,0.00246867,111540.0,111530.0,0.89560286]
[1756956598226,0.00346867,111540.0,111530.0,0.89560286]
[1756956600627,0.00346867,111540.0,111530.0,0.54795131]
[1756956600792,0.00346867,111540.0,111530.0,0.89560286]
[1756956601764,0.00346867,111540.0,111530.0,1.24325441]
[1756956602597,0.00346867,111540.0,111530.0,0.89536286]
[1756956603514,0.00560867,111540.0,111530.0,0.35882747]
[1756956603720,0.35628022,111540.0,111530.0,0.51273747]
[1756956603951,0.00862867,111540.0,111530.0,0.43232279]
[1756956604395,0.35628022,111540.0,111530.0,0.43232279]
[1756956604614,0.35628022,111540.0,111530.0,0.27640279]
[1756956605077,0.35628022,111540.0,111530.0,0.43232279]
[1756956606413,0.39214299,111540.0,111530.0,0.27640279]
[1756956606609,0.73979454,111540.0,111530.0,0.3403668]
[1756956606824,0.39214299,111540.0,111530.0,0.3403668]
[1756956607246,0.57145086,111540.0,111530.0,0.3402868]
[1756956607675,0.91910241,111540.0,111530.0,0.3402868]
[1756956607879,0.73979454,111540.0,111530.0,0.3402868]
[1756956608093,0.39214299,111540.0,111530.0,0.3402868]
[1756956608538,0.57145086,111540.0,111530.0,0.3402868]
[1756956608990,0.91145086,111540.0,111530.0,0.3402468]
[1756956609438,1.25910241,111540.0,111530.0,0.3402468]
[1756956610089,0.91145086,111540.0,111530.0,0.3402468]
[1756956611901,0.38449144,111540.0,111530.0,0.3402468]
[1756956612113,0.73214299,111540.0,111530.0,0.3402468]
[1756956613252,0.91145086,111540.0,111530.0,0.3402468]
[1756956613670,0.03041812,111540.0,111530.0,0.78475434]
[1756956614138,0.00346867,111540.0,111530.0,0.43710279]
[1756956614361,0.00346867,111540.0,111530.0,0.78475434]
[1756956614570,0.00346867,111540.0,111530.0,0.51755747]
[1756956614810,0.00346867,111540.0,111530.0,0.88614784]
[1756956615462,0.00346867,111540.0,111530.0,0.53849629]
[1756956615671,0.00346867,111540.0,111530.0,0.88614784]
[1756956616120,0.00346867,111540.0,111530.0,1.23379939]
[1756956616346,0.02694521,111560.0,111530.0,1.24276558]
[1756956616579,0.07354631,111570.0,111560.0,0.17927572]
[1756956616852,0.10048861,111570.0,111560.0,0.42895265]
[1756956617087,0.10048861,111570.0,111560.0,0.77930326]
[1756956617296,0.0269423,111570.0,111560.0,0.77930326]
[1756956618172,0.0279423,111570.0,111560.0,0.78130326]
[1756956618382,0.0279423,111570.0,111560.0,1.14989363]
[1756956618383,0.001,111570.0,111560.0,1.14989363]
[1756956618564,0.001,111570.0,111560.0,0.99437363]
[1756956618797,0.00308,111570.0,111560.0,0.27519171]
[1756956619022,0.35387155,111570.0,111560.0,0.42879171]
[1756956619666,0.7015231,111570.0,111560.0,0.42879171]
[1756956619893,0.7025231,111570.0,111560.0,0.43379171]
[1756956620366,0.35387155,111570.0,111560.0,0.43179171]
[1756956620608,0.35487155,111570.0,111560.0,0.43879171]
[1756956621313,0.7025231,111570.0,111560.0,0.012]
[1756956621544,1.77787296,111570.0,111560.0,0.012]
[1756956622011,1.88991578,111570.0,111560.0,0.012]
[1756956622240,1.89283189,111570.0,111560.0,0.007]
[1756956622463,1.89283189,111570.0,111560.0,0.009]
[1756956622898,1.89183189,111570.0,111560.0,0.002]
[1756956623122,0.34,111540.0,111530.0,0.34997918]
[1756956623320,1.0373831,111540.0,111530.0,0.35197918]
[1756956623977,0.36903073,111540.0,111530.0,0.35197918]
[1756956624225,0.71460228,111540.0,111530.0,0.44683517]
[1756956624444,0.71560228,111540.0,111530.0,0.45183517]
[1756956625040,1.2446417,111540.0,111530.0,0.43984898]
[1756956625467,1.2456417,111540.0,111530.0,0.44384898]
[1756956628200,1.06633383,111540.0,111530.0,0.44384898]
[1756956628709,0.37103073,111540.0,111530.0,0.44384898]
[1756956628916,1.06425383,111540.0,111530.0,0.44678898]
[1756956629900,0.71660228,111540.0,111530.0,0.44678898]
[1756956630112,1.06425383,111540.0,111530.0,0.44678898]
[1756956631667,0.71660228,111540.0,111530.0,0.44678898]
[1756956632655,0.36895073,111540.0,111530.0,0.44678898]
[1756956632856,0.71660228,111540.0,111530.0,0.44678898]
[1756956635802,0.02895073,111540.0,111530.0,0.4677278]
[1756956636020,0.002,111540.0,111530.0,0.81537935]
[1756956636965,0.002,111540.0,111530.0,0.4677278]
[1756956637193,0.002,111540.0,111530.0,0.89598328]
[1756956637399,0.002,111540.0,111530.0,0.54833173]
[1756956637601,0.002,111540.0,111530.0,1.10443351]
[1756956637823,0.002,111540.0,111530.0,0.54833173]
[1756956638156,0.002,111540.0,111530.0,1.10443351]
[1756956638362,0.002,111540.0,111530.0,0.94803351]
[1756956638561,0.002,111540.0,111530.0,0.54765173]
[1756956639029,0.002,111540.0,111530.0,0.39193173]
[1756956639230,0.002,111540.0,111530.0,0.54765173]
[1756956639464,0.002,111540.0,111530.0,0.54761173]
[1756956639815,0.002,111540.0,111530.0,0.4670078]
[1756956640214,0.002,111540.0,111530.0,0.54761173]
[1756956642660,0.002,111540.0,111530.0,0.54757173]
[1756956644792,0.002,111540.0,111530.0,1.10367351]
[1756956645557,0.00408,111540.0,111530.0,0.54741173]
[1756956645777,0.00713,111540.0,111530.0,0.44088898]
[1756956646317,0.56323178,111540.0,111530.0,0.44088898]
[1756956647266,0.56323178,111540.0,111530.0,0.28544898]
[1756956647478,0.74253965,111540.0,111530.0,0.44084898]
[1756956647686,0.56323178,111540.0,111530.0,0.44084898]
[1756956649369,0.56323178,111540.0,111530.0,0.28544898]
[1756956649564,0.74253965,111540.0,111530.0,0.44084898]
[1756956649800,0.74253965,111540.0,111530.0,0.4408097]
[1756956650939,0.59018079,111540.0,111530.0,0.4408097]
[1756956651603,0.03407901,111540.0,111530.0,0.4408097]
[1756956651813,0.59018079,111540.0,111530.0,0.4408097]
[1756956652171,0.03102901,111540.0,111530.0,0.4429497]
[1756956652381,0.58713079,111540.0,111530.0,0.4408097]
[1756956653276,0.03102901,111540.0,111530.0,0.4408097]
[1756956653484,0.58713079,111540.0,111530.0,0.4429497]
[1756956653906,0.02894901,111540.0,111530.0,0.4461897]
[1756956654120,0.002,111540.0,111530.0,0.4461897]
[1756956660333,0.002,111540.0,111530.0,0.46712852]
[1756956660754,0.002,111540.0,111530.0,0.54773245]
[1756956661606,0.002,111540.0,111530.0,0.39237245]
[1756956661809,0.002,111540.0,111530.0,0.46708852]
[1756956662020,0.002,111540.0,111530.0,0.54769245]
[1756956666143,0.00408,111540.0,111530.0,0.54231245]
[1756956666360,0.56018178,111540.0,111530.0,0.54231245]
[1756956666550,0.00408,111540.0,111530.0,0.54445245]
[1756956666768,0.00408,111540.0,111530.0,0.54769245]
[1756956667473,0.002,111540.0,111530.0,0.54769245]
[1756956668458,0.00408,111540.0,111530.0,0.39237245]
[1756956668664,0.002,111540.0,111530.0,0.54769245]
[1756956669066,0.002,111540.0,111530.0,0.39237245]
[1756956669238,0.002,111540.0,111530.0,0.54769245]
[1756956670081,0.56023178,111540.0,111530.0,0.39237245]
[1756956670296,0.56023178,111540.0,111530.0,0.46384852]
[1756956670505,0.56325178,111540.0,111530.0,0.46170852]
[1756956670860,0.56023178,111540.0,111530.0,0.46170852]
[1756956671291,0.56325178,111540.0,111530.0,0.2854497]
[1756956671507,0.74255965,111540.0,111530.0,0.4407697]
[1756956671722,1.08255965,111540.0,111530.0,0.01420977]
[1756956671934,1.10550965,111540.0,111530.0,0.16952977]
[1756956674499,1.13246256,111540.0,111530.0,0.16952977]
[1756956676684,1.28778256,111540.0,111530.0,0.01420977]
[1756956677741,1.28678256,111540.0,111530.0,0.01020977]
[1756956677952,1.37769855,111540.0,111530.0,0.00720977]
[1756956678212,1.37869855,111540.0,111530.0,0.01120977]
[1756956678408,1.37769855,111540.0,111530.0,0.00720977]
[1756956678634,1.37769855,111540.0,111530.0,0.00520977]
[1756956678838,1.22337855,111540.0,111530.0,0.01120977]
[1756956679035,1.37869855,111540.0,111530.0,0.01120977]
[1756956679277,1.86002461,111540.0,111530.0,0.01120977]
[1756956679407,1.25180721,111540.0,111530.0,0.01120977]
[1756956679607,1.37869855,111540.0,111530.0,0.01120977]
[1756956679824,0.73068078,111540.0,111530.0,0.01120977]
[1756956680032,1.28678256,111540.0,111530.0,0.01120977]
[1756956680701,1.13146256,111540.0,111530.0,0.01120977]
[1756956680859,1.28678256,111540.0,111530.0,0.00920977]
[1756956681104,1.28578256,111540.0,111530.0,0.00520977]
[1756956681549,0.57536078,111540.0,111530.0,0.00720977]
[1756956681756,1.28578256,111540.0,111530.0,0.00520977]
[1756956681965,1.28578256,111540.0,111530.0,0.00620977]
[1756956682153,1.28678256,111540.0,111530.0,0.00920977]
[1756956691370,1.10851256,111540.0,111530.0,0.00920977]
[1756956691550,1.26383256,111540.0,111530.0,0.00920977]
[1756956693798,0.70773078,111540.0,111530.0,0.00920977]
[1756956694008,1.26383256,111540.0,111530.0,0.00920977]
[1756956695047,1.10851256,111540.0,111530.0,0.00920977]
[1756956695227,1.26379256,111540.0,111530.0,0.00920977]
[1756956696427,1.35570855,111540.0,111530.0,0.00920977]
[1756956696969,1.20042855,111540.0,111530.0,0.00920977]
[1756956697173,1.35570855,111540.0,111530.0,0.00920977]
[1756956698697,1.91181033,111540.0,111530.0,0.00920977]
[1756956698926,1.35570855,111540.0,111530.0,0.00920977]
[1756956699126,1.91181033,111540.0,111530.0,0.00920977]
[1756956699322,2.1249918,111540.0,111530.0,0.00920977]
[1756956699523,3.51840606,111540.0,111530.0,0.00920977]
[1756956703284,0.85750824,111540.0,111530.0,0.00920977]
[1756956703494,0.17935611,111510.0,111500.0,0.22168191]
[1756956703724,0.75222299,111520.0,111500.0,0.22416058]
[1756956703937,0.75760297,111510.0,111500.0,0.22416058]
[1756956704162,0.78456142,111510.0,111500.0,0.22416058]
[1756956704376,0.36695845,111510.0,111500.0,0.22416058]
[1756956704594,0.78456142,111510.0,111500.0,0.22416058]
[1756956704826,0.78556142,111510.0,111500.0,0.22816058]
[1756956705543,0.78756142,111510.0,111500.0,0.23339058]
[1756956706585,0.97579109,111510.0,111500.0,0.23339058]
[1756956707229,0.97460283,111510.0,111500.0,0.23339058]
[1756956707834,0.79524672,111510.0,111500.0,0.23339058]
[1756956708040,0.78637316,111510.0,111500.0,0.23339058]
[1756956708704,0.78637316,111510.0,111500.0,0.38867058]
[1756956711437,0.96572927,111510.0,111500.0,0.37970198]
[1756956712252,0.36877019,111510.0,111500.0,0.37970198]
[1756956712460,0.36877019,111510.0,111500.0,0.88922094]
[1756956712461,0.02995845,111510.0,111500.0,0.88922094]
[1756956713117,0.02995845,111510.0,111500.0,0.47161797]
[1756956713325,0.44756142,111510.0,111500.0,0.47161797]
[1756956713538,0.02995845,111510.0,111500.0,0.47161797]
[1756956717011,1.0494905,111510.0,111500.0,0.03980979]
[1756956717472,0.21428456,111510.0,111500.0,0.03980979]
[1756956717700,1.0494905,111510.0,111500.0,0.03980979]
[1756956718867,0.21428456,111510.0,111500.0,0.03980979]
[1756956719301,1.06961733,111510.0,111500.0,0.03980979]
[1756956720570,1.09804599,111510.0,111500.0,0.03980979]
[1756956720775,1.07791916,111510.0,111500.0,0.03980979]
[1756956721445,1.07691916,111510.0,111500.0,0.03580979]
[1756956721618,1.07491916,111510.0,111500.0,0.03380979]
[1756956722044,1.07691916,111510.0,111500.0,0.03580979]
[1756956722378,1.2036905,111510.0,111500.0,0.03580979]
[1756956722790,1.2046905,111510.0,111500.0,0.03880979]
[1756956725040,0.63188753,111510.0,111500.0,0.04081979]
[1756956725180,0.78410753,111510.0,111500.0,0.04081979]
[1756956725389,1.2017105,111510.0,111500.0,0.04081979]
[1756956725600,1.0465105,111510.0,111500.0,0.04081979]
[1756956725810,1.2046905,111510.0,111500.0,0.22019198]
[1756956726025,1.2046905,111510.0,111500.0,0.04081979]
[1756956726271,0.21130456,111510.0,111500.0,0.22019198]
[1756956726494,0.21130456,111510.0,111500.0,0.37862198]
[1756956726495,0.78756142,111510.0,111500.0,0.37862198]
[1756956727585,0.78756142,111510.0,111500.0,0.47053797]
[1756956728250,0.36995845,111510.0,111500.0,0.47053797]
[1756956728467,0.02995845,111510.0,111500.0,0.47053797]
[1756956728701,0.44756142,111510.0,111500.0,0.47053797]
[1756956729559,0.42060297,111510.0,111500.0,0.47053797]
[1756956731765,0.003,111510.0,111500.0,0.47053797]
[1756956732204,0.42060297,111510.0,111500.0,0.47053797]
[1756956732412,0.003,111510.0,111500.0,0.47053797]
[1756956732662,0.42060297,111510.0,111500.0,0.47053797]
[1756956732886,0.003,111510.0,111500.0,0.90907976]
[1756956733095,0.003,111510.0,111500.0,0.49147679]
[1756956733777,0.003,111510.0,111500.0,0.33627679]
[1756956734013,0.42060297,111510.0,111500.0,0.49143679]
[1756956735097,0.003,111510.0,111500.0,0.49143679]
[1756956735290,0.42060297,111510.0,111500.0,0.49143679]
[1756956736004,0.003,111510.0,111500.0,0.49143679]
[1756956736209,0.42060297,111510.0,111500.0,0.49143679]
[1756956736433,0.003,111510.0,111500.0,0.33304679]
[1756956736643,0.42271297,111510.0,111500.0,0.33304679]
[1756956736829,0.42566297,111510.0,111500.0,0.48820679]
[1756956737031,0.42566297,111510.0,111500.0,0.31210797]
[1756956737175,0.42566297,111510.0,111500.0,0.46726797]
[1756956737790,0.00806,111510.0,111500.0,0.46726797]
[1756956738022,0.42060297,111510.0,111500.0,0.47044797]
[1756956740218,0.42566297,111510.0,111500.0,0.46722797]
[1756956740841,0.00806,111510.0,111500.0,0.46722797]
[1756956741247,0.42566297,111510.0,111500.0,0.46722797]
[1756956742111,0.60501908,111510.0,111500.0,0.31210797]
[1756956742327,1.36262205,111510.0,111500.0,0.19392979]
[1756956742527,1.38958016,111510.0,111500.0,0.03880979]
[1756956747543,1.54470016,111510.0,111500.0,0.03880979]
[1756956759692,1.26637127,111510.0,111500.0,0.03880979]
[1756956761365,1.11125127,111510.0,111500.0,0.03880979]
[1756956761566,1.11125127,111510.0,111500.0,0.04079979]
[1756956761795,1.26633127,111510.0,111500.0,0.04079979]
[1756956763846,1.26127127,111510.0,111500.0,0.04079979]
[1756956764047,1.10619127,111510.0,111500.0,0.04079979]
[1756956764644,1.10619127,111510.0,111500.0,0.04395979]
[1756956765249,0.54931422,111510.0,111500.0,0.22333198]
[1756956765506,1.10619127,111510.0,111500.0,0.22333198]
[1756956766259,0.54931422,111510.0,111500.0,0.22333198]
[1756956766473,0.36995811,111510.0,111500.0,0.47032797]
[1756956766692,0.343,111510.0,111500.0,0.47032797]
[1756956767294,0.89987705,111510.0,111500.0,0.47032797]
[1756956769313,0.343,111510.0,111500.0,0.47032797]
[1756956769561,0.89987705,111510.0,111500.0,0.47032797]
[1756956770447,1.08125316,111510.0,111500.0,0.46716797]
[1756956770572,1.08427316,111510.0,111500.0,0.46716797]
[1756956771225,1.08427316,111510.0,111500.0,0.13271578]
[1756956771428,1.08427316,111510.0,111500.0,0.28580578]
[1756956771769,1.11122963,111510.0,111500.0,0.46517797]
[1756956772646,1.11122963,111510.0,111500.0,0.13072578]
[1756956772851,1.11122963,111510.0,111500.0,0.28580578]
[1756956773710,0.55435258,111510.0,111500.0,0.28580578]
[1756956773855,1.11122963,111510.0,111500.0,0.28580578]
[1756956774056,1.11122963,111510.0,111500.0,0.19388979]
[1756956774325,1.26630963,111510.0,111500.0,0.03880979]
[1756956776287,1.11122963,111510.0,111500.0,0.03880979]
[1756956776462,0.36995647,111510.0,111500.0,0.22017198]
[1756956776761,1.10618963,111510.0,111500.0,0.22017198]
[1756956777003,1.10820963,111510.0,111500.0,0.22017198]
[1756956777823,1.11122963,111510.0,111500.0,0.22017198]
[1756956778373,0.93187352,111510.0,111500.0,0.22017198]
[1756956778955,0.37499647,111510.0,111500.0,0.22017198]
[1756956779130,1.11122963,111510.0,111500.0,0.22017198]
[1756956779349,0.92683352,111510.0,111500.0,0.22017198]
[1756956779522,0.92683352,111510.0,111500.0,0.22333198]
[1756956779954,0.92683352,111510.0,111500.0,0.22017198]
[1756956780669,0.92885352,111510.0,111500.0,0.22017198]
[1756956780974,0.37197647,111510.0,111500.0,0.22017198]
[1756956781114,0.92885352,111510.0,111500.0,0.22017198]
[1756956781320,1.10820963,111510.0,111500.0,0.22017198]
[1756956781515,1.11122963,111510.0,111500.0,0.03880979]
[1756956781721,1.11122963,111510.0,111500.0,0.19384979]
[1756956782126,1.11122963,111510.0,111500.0,0.03880979]
[1756956782341,1.26626963,111510.0,111500.0,0.03880979]
[1756956788355,1.26626963,111510.0,111500.0,0.22375034]
[1756956788588,1.26626963,111510.0,111500.0,0.21818198]
[1756956788988,1.26626963,111510.0,111500.0,0.03880979]
[1756956793733,1.11122963,111510.0,111500.0,0.03880979]
[1756956795825,1.26622963,111510.0,111500.0,0.03880979]
[1756956796596,0.70935258,111510.0,111500.0,0.03880979]
[1756956796801,1.26622963,111510.0,111500.0,0.03880979]